fUSD/lending_fUSD_20250216
["ID","MTS","AMOUNT","RATE_DAILY","PERIOD"]
[353310332,1739747445422,-500.0,0.00012765,2]
[353310333,1739747445432,-500.0,0.00012765,2]
[353310334,1739747445442,-500.0,0.00012765,2]
[353310335,1739747445453,-500.0,0.00012765,2]
[353310336,1739747445463,-500.0,0.00012765,2]
[353310337,1739747445473,-574.53,0.00012765,2]
[353310338,1739747445483,-500.0,0.00012766,2]
[353310339,1739747445493,-500.0,0.00012766,2]
[353310340,1739747445503,-500.0,0.00012766,2]
[353310341,1739747445514,-500.0,0.00012766,2]
[353310342,1739747445524,-500.0,0.00012766,2]
[353310343,1739747445534,-500.0,0.00012766,2]
[353310344,1739747445545,-500.0,0.00012766,2]
[353310345,1739747445555,-500.0,0.00012766,2]
[353310346,1739747445566,-500.0,0.00012766,2]
[353310347,1739747445577,-500.0,0.00012766,2]
[353310348,1739747445587,-500.0,0.00012766,2]
[353310349,1739747445598,-500.0,0.00012766,2]
[353310350,1739747445608,-500.0,0.00012766,2]
[353310351,1739747445618,-500.0,0.00012766,2]
[353310352,1739747445628,-500.0,0.00012766,2]
[353310353,1739747445638,-500.0,0.00012766,2]
[353310354,1739747445648,-240.50149604,0.00012766,2]
[353310355,1739747445659,-500.0,0.00012766,2]
[353310356,1739747445671,-611.96,0.00012766,2]
[353310357,1739747445682,-538.4,0.00012766,2]
[353310358,1739747445692,-500.0,0.00012766,2]
[353310359,1739747445703,-500.0,0.00012766,2]
[353310360,1739747445712,-500.0,0.00012766,2]
[353310361,1739747445723,-500.0,0.00012766,2]
[353310362,1739747445734,-500.0,0.00012766,2]
[353310363,1739747445744,-604.28,0.00012766,2]
[353310364,1739747445755,-500.0,0.00012766,2]
[353310365,1739747445765,-500.0,0.00012766,2]
[353310366,1739747445775,-500.0,0.00012766,2]
[353310367,1739747445785,-500.0,0.00012766,2]
[353310368,1739747445795,-444.05310008,0.00012766,2]
[353310369,1739747445806,-500.0,0.00012766,2]
[353310370,1739747446020,-500.0,0.00012766,2]
[353310371,1739747446030,-500.0,0.00012766,2]
[353310372,1739747446039,-500.0,0.00012766,2]
[353310373,1739747446048,-500.0,0.00012766,2]
[353310374,1739747446058,-500.0,0.00012766,2]
[353310375,1739747446068,-500.0,0.00012766,2]
[353310376,1739747446078,-416.70586845,0.00012766,2]
[353310377,1739747446087,-500.0,0.00012766,2]
[353310378,1739747446098,-500.0,0.00012766,2]
[353310379,1739747446107,-500.0,0.00012766,2]
[353310380,1739747446116,-500.0,0.00012766,2]
[353310381,1739747446125,-500.0,0.00012766,2]
[353310382,1739747446135,-500.0,0.00012766,2]
[353310383,1739747446144,-500.0,0.00012766,2]
[353310384,1739747446154,-500.0,0.00012766,2]
[353310385,1739747446163,-500.0,0.00012766,2]
[353310386,1739747446173,-500.0,0.00012766,2]
[353310387,1739747446182,-1200.0,0.00012766,2]
[353310388,1739747446192,-500.0,0.00012766,2]
[353310389,1739747446201,-500.0,0.00012766,2]
[353310390,1739747446211,-500.0,0.00012766,2]
[353310391,1739747446221,-500.0,0.00012766,2]
[353310392,1739747446230,-500.0,0.00012766,2]
[353310393,1739747446239,-500.0,0.00012766,2]
[353310394,1739747446249,-500.0,0.00012766,2]
[353310395,1739747446258,-500.0,0.00012766,2]
[353310396,1739747446268,-500.0,0.00012766,2]
[353310397,1739747446277,-500.0,0.00012766,2]
[353310398,1739747446287,-697.63,0.00012766,2]
[353310399,1739747446297,-500.0,0.00012766,2]
[353310400,1739747446307,-500.0,0.00012766,2]
[353310401,1739747446317,-500.0,0.00012766,2]
[353310402,1739747446327,-500.0,0.00012766,2]
[353310403,1739747446336,-500.0,0.00012766,2]
[353310404,1739747446346,-785.106,0.00012767,2]
[353310405,1739747446356,-1275.0,0.00012767,2]
[353310406,1739747446366,-1275.0,0.00012795,2]
[353310407,1739747446376,-1275.0,0.00012822,2]
[353310408,1739747446386,-12304.69923928,0.00012841,2]
[353310411,1739747446988,-1160.11896,0.00012841,2]
[353310412,1739747447003,-4971.80055815,0.00012841,2]
[353310413,1739747447014,-3966.83190627,0.00012841,2]
[353310414,1739747447029,-4325.99470946,0.00012841,2]
[353310415,1739747447041,-1550.09949082,0.00012841,2]
[353310416,1739747447052,-8281.19684541,0.00012841,2]
[353310417,1739747447071,-500.0,0.00012846,2]
[353310418,1739747447107,-151.40587917,0.00012846,2]
[353310419,1739747447158,-500.0,0.00012847,2]
[353310420,1739747447263,-510.26,0.00012847,2]
[353310421,1739747447348,-500.0,0.00012847,2]
[353310422,1739747447452,-507.20928391,0.00012847,2]
[353310423,1739747447559,-160.511366,0.00012847,2]
[353310424,1739747447696,-157.796923,0.00012847,2]
[353310425,1739747447813,-500.0,0.00012847,2]
[353310426,1739747447906,-500.0,0.00012847,2]
[353310427,1739747448038,-500.0,0.00012847,2]
[353310428,1739747448168,-1571.7,0.00012847,2]
[353310429,1739747448252,-509.28,0.00012847,2]
[353310430,1739747448319,-500.0,0.00012847,2]
[353310431,1739747448330,-500.0,0.00012847,2]
[353310432,1739747448340,-467.64290681,0.00012847,2]
[353310433,1739747448353,-32.35709319,0.00012847,2]
[353310434,1739747448363,-1275.44,0.00012847,2]
[353310435,1739747448373,-500.0,0.00012847,2]
[353310436,1739747448383,-374.24,0.00012847,2]
[353310437,1739747448393,-508.84,0.00012847,2]
[353310438,1739747448402,-724.43,0.00012847,2]
[353310439,1739747448411,-500.0,0.00012847,2]
[353310440,1739747448421,-587.89,0.00012847,2]
[353310441,1739747448431,-500.0,0.00012847,2]
[353310442,1739747448441,-500.0,0.00012847,2]
[353310443,1739747448451,-537.54,0.00012847,2]
[353310444,1739747448462,-500.0,0.00012847,2]
[353310445,1739747448471,-500.0,0.00012847,2]
[353310446,1739747448482,-643.0,0.00012847,2]
[353310447,1739747448492,-500.0,0.00012847,2]
[353310448,1739747448501,-500.0,0.00012847,2]
[353310449,1739747448512,-500.0,0.00012847,2]
[353310450,1739747448521,-500.0,0.00012847,2]
[353310451,1739747448532,-500.0,0.00012847,2]
[353310452,1739747448542,-529.5,0.00012847,2]
[353310453,1739747448552,-500.0,0.00012847,2]
[353310454,1739747448562,-500.0,0.00012847,2]
[353310455,1739747448572,-500.0,0.00012847,2]
[353310456,1739747448582,-662.4,0.00012847,2]
[353310457,1739747448592,-587.42,0.00012847,2]
[353310458,1739747448602,-500.0,0.00012847,2]
[353310459,1739747448624,-534.94,0.00012847,2]
[353310460,1739747448635,-500.0,0.00012847,2]
[353310461,1739747448646,-500.0,0.00012847,2]
[353310462,1739747448657,-607.04,0.00012847,2]
[353310463,1739747448668,-714.48,0.00012847,2]
[353310464,1739747448679,-500.0,0.00012847,2]
[353310465,1739747448689,-700.92,0.00012847,2]
[353310466,1739747448699,-500.0,0.00012847,2]
[353310467,1739747448710,-500.0,0.00012847,2]
[353310468,1739747448719,-500.4,0.00012847,2]
[353310469,1739747448730,-500.0,0.00012847,2]
[353310470,1739747448740,-500.0,0.00012847,2]
[353310471,1739747448750,-500.0,0.00012847,2]
[353310472,1739747448759,-500.0,0.00012847,2]
[353310473,1739747448769,-648.98,0.00012847,2]
[353310474,1739747448778,-321.93761031,0.00012847,2]
[353310475,1739747448792,-178.06238969,0.00012847,2]
[353310476,1739747448801,-546.44,0.00012847,2]
[353310477,1739747448811,-500.0,0.00012847,2]
[353310478,1739747448826,-500.0,0.00012847,2]
[353310479,1739747448836,-590.43,0.00012847,2]
[353310480,1739747448846,-500.0,0.00012847,2]
[353310481,1739747448855,-191.16,0.00012847,2]
[353310482,1739747448865,-500.0,0.00012847,2]
[353310483,1739747448874,-337.19214636,0.00012847,2]
[353310484,1739747448886,-162.80785364,0.00012847,2]
[353310485,1739747448897,-500.0,0.00012847,2]
[353310486,1739747448907,-137.26213836,0.00012847,2]
[353310487,1739747448919,-437.26786164,0.00012847,2]
[353310488,1739747448928,-500.0,0.00012848,2]
[353310489,1739747448937,-239.88,0.00012848,2]
[353310490,1739747448947,-500.0,0.00012848,2]
[353310491,1739747448957,-308.88,0.00012848,2]
[353310492,1739747448967,-210.96,0.00012848,2]
[353310493,1739747448978,-500.0,0.00012848,2]
[353310494,1739747448988,-500.0,0.00012848,2]
[353310495,1739747448998,-500.0,0.00012848,2]
[353310496,1739747449008,-500.0,0.00012848,2]
[353310497,1739747449019,-500.0,0.00012848,2]
[353310498,1739747449029,-500.0,0.00012848,2]
[353310499,1739747449039,-228.36,0.00012848,2]
[353310500,1739747449050,-500.0,0.00012848,2]
[353310501,1739747449060,-341.53566016,0.00012848,2]
[353310502,1739747449311,-401.0,0.00012848,2]
[353310503,1739747449424,-457.46433984,0.00012848,2]
[353310504,1739747449434,-208.11770015,0.00012848,2]
[353310505,1739747449447,-291.88229985,0.00012848,2]
[353310506,1739747449458,-332.76770019,0.00012848,2]
[353310507,1739747449471,-14.15229981,0.00012848,2]
[353310508,1739747449481,-500.0,0.00012848,2]
[353310509,1739747449491,-81.29969891,0.00012848,2]
[353310510,1739747449508,-418.70030109,0.00012848,2]
[353310511,1739747449519,-500.0,0.00012848,2]
[353310512,1739747449530,-66.47756968,0.00012848,2]
[353310513,1739747449543,-631.15243032,0.00012848,2]
[353310514,1739747449553,-500.0,0.00012848,2]
[353310515,1739747449563,-500.0,0.00012848,2]
[353310516,1739747449573,-328.40756968,0.00012848,2]
[353310517,1739747449590,-171.59243032,0.00012848,2]
[353310518,1739747449600,-295.94,0.00012848,2]
[353310519,1739747449611,-500.0,0.00012848,2]
[353310520,1739747449622,-162.27742701,0.00012849,2]
[353310521,1739747449633,-151.0,0.00012849,2]
[353310522,1739747449714,-151.954279,0.00012849,2]
[353310523,1739747449725,-151.0,0.00012849,2]
[353310524,1739747449736,-172.926649,0.00012849,2]
[353310525,1739747449746,-172.926649,0.00012849,2]
[353310526,1739747449756,-151.0,0.00012849,2]
[353310527,1739747449765,-151.0,0.00012849,2]
[353310528,1739747449775,-219.268186,0.00012849,2]
[353310529,1739747449785,-219.268186,0.00012849,2]
[353310530,1739747449796,-202.36023367,0.0001285,2]
[353310531,1739747449818,-1080.63976633,0.0001285,2]
[353310532,1739747449829,-224.73,0.00012856,2]
[353310533,1739747449839,-400.0,0.000129,3]
[353310534,1739747449849,-151.0,0.00012928,2]
[353310535,1739747449861,-500.0,0.00012929,2]
[353310536,1739747449871,-160.511366,0.00012929,2]
[353310537,1739747449881,-157.796923,0.00012929,2]
[353310538,1739747449892,-500.0,0.00012929,2]
[353310539,1739747449903,-500.0,0.00012929,2]
[353310540,1739747449914,-500.0,0.00012929,2]
[353310541,1739747449924,-711.24426127,0.00012929,2]
[353310542,1739747449936,-386.6563936,0.00012929,2]
[353310543,1739747476299,-473.79934513,0.00012929,2]
[353310544,1739747476308,-509.28,0.00012929,2]
[353310545,1739747476318,-500.0,0.00012929,2]
[353310546,1739747476327,-500.0,0.00012929,2]
[353310547,1739747476336,-1275.44,0.00012929,2]
[353310548,1739747476345,-500.0,0.00012929,2]
[353310549,1739747476354,-508.84,0.00012929,2]
[353310550,1739747476366,-724.43,0.00012929,2]
[353310551,1739747476376,-500.0,0.00012929,2]
[353310552,1739747476386,-500.0,0.00012929,2]
[353310553,1739747476395,-500.0,0.00012929,2]
[353310554,1739747476404,-500.0,0.00012929,2]
[353310555,1739747476414,-500.0,0.00012929,2]
[353310556,1739747476423,-500.0,0.00012929,2]
[353310557,1739747476432,-662.4,0.00012929,2]
[353310558,1739747476442,-534.94,0.00012929,2]
[353310559,1739747476451,-500.0,0.00012929,2]
[353310560,1739747476461,-700.92,0.00012929,2]
[353310561,1739747476471,-500.0,0.00012929,2]
[353310562,1739747476481,-500.0,0.00012929,2]
[353310563,1739747476491,-500.0,0.00012929,2]
[353310564,1739747476501,-500.0,0.00012929,2]
[353310565,1739747476511,-500.0,0.00012929,2]
[353310566,1739747476520,-500.0,0.00012929,2]
[353310567,1739747476530,-500.0,0.0001293,2]
[353310568,1739747476540,-500.0,0.0001293,2]
[353310569,1739747476549,-500.0,0.0001293,2]
[353310570,1739747476559,-328.36,0.0001293,2]
[353310571,1739747476569,-239.44,0.0001293,2]
[353310572,1739747476578,-397.78,0.0001293,2]
[353310573,1739747476588,-500.0,0.0001293,2]
[353310574,1739747476598,-500.0,0.0001293,2]
[353310575,1739747476608,-500.0,0.0001293,2]
[353310576,1739747476618,-500.0,0.0001293,2]
[353310577,1739747476627,-500.0,0.0001293,2]
[353310578,1739747476636,-500.0,0.0001293,2]
[353310579,1739747476646,-500.0,0.0001293,2]
[353310580,1739747476656,-697.63,0.0001293,2]
[353310581,1739747476665,-500.0,0.0001293,2]
[353310582,1739747476674,-328.48,0.0001293,2]
[353310583,1739747476685,-587.89,0.0001293,2]
[353310584,1739747476696,-500.0,0.0001293,2]
[353310585,1739747476707,-166.32,0.0001293,2]
[353310586,1739747476716,-643.0,0.0001293,2]
[353310587,1739747476726,-500.0,0.0001293,2]
[353310588,1739747476738,-308.78,0.0001293,2]
[353310589,1739747476747,-500.0,0.0001293,2]
[353310590,1739747476757,-500.0,0.0001293,2]
[353310591,1739747476767,-529.5,0.0001293,2]
[353310592,1739747476777,-500.0,0.0001293,2]
[353310593,1739747476786,-500.0,0.0001293,2]
[353310594,1739747476796,-587.42,0.0001293,2]
[353310595,1739747476805,-500.0,0.0001293,2]
[353310596,1739747476815,-500.0,0.0001293,2]
[353310597,1739747476827,-714.48,0.0001293,2]
[353310598,1739747476836,-500.0,0.0001293,2]
[353310599,1739747476846,-500.0,0.0001293,2]
[353310600,1739747476855,-500.0,0.0001293,2]
[353310601,1739747476865,-648.98,0.0001293,2]
[353310602,1739747476875,-546.44,0.0001293,2]
[353310603,1739747476884,-500.0,0.0001293,2]
[353310604,1739747476893,-500.0,0.0001293,2]
[353310605,1739747476903,-500.0,0.0001293,2]
[353310606,1739747476913,-500.0,0.0001293,2]
[353310607,1739747476922,-574.53,0.0001293,2]
[353310608,1739747476931,-8675.7167567,0.00013004,2]
[353310609,1739747476939,-4995.2545939,0.00013004,2]
[353310610,1739747476949,-247.72,0.00013012,2]
[353310611,1739747476958,-160.511366,0.00013012,2]
[353310612,1739747476968,-500.0,0.00013012,2]
[353310613,1739747476977,-500.0,0.00013012,2]
[353310614,1739747476987,-500.0,0.00013012,2]
[353310615,1739747476997,-1571.7,0.00013012,2]
[353310616,1739747477007,-509.28,0.00013012,2]
[353310617,1739747477017,-500.0,0.00013012,2]
[353310618,1739747477026,-500.0,0.00013012,2]
[353310619,1739747477035,-1275.44,0.00013012,2]
[353310620,1739747477045,-500.0,0.00013012,2]
[353310621,1739747477054,-508.84,0.00013012,2]
[353310622,1739747477064,-724.43,0.00013012,2]
[353310623,1739747477073,-500.0,0.00013012,2]
[353310624,1739747477082,-587.89,0.00013012,2]
[353310625,1739747477092,-500.0,0.00013012,2]
[353310626,1739747477102,-267.94,0.00013012,2]
[353310627,1739747477111,-500.0,0.00013012,2]
[353310628,1739747477121,-643.0,0.00013012,2]
[353310629,1739747477131,-500.0,0.00013012,2]
[353310630,1739747477140,-500.0,0.00013012,2]
[353310631,1739747477150,-500.0,0.00013012,2]
[353310632,1739747477160,-492.64826363,0.00013012,2]
[353310633,1739747477323,-7.35173637,0.00013012,2]
[353310634,1739747477333,-434.70934276,0.00013012,2]
[353310635,1739747635458,545.86,0.000114,2]
[353310636,1739747822149,491.27,0.000114,2]
[353310637,1739747839535,521.8709,8.973e-05,2]
[353310638,1739748008486,442.14,0.000114,2]
[353310639,1739748050707,849.6419,8.836e-05,2]
[353310640,1739748061577,417.04,0.00010139,2]
[353310641,1739748095886,863.23712707,0.00010139,2]
[353310642,1739748194842,397.93,0.000114,2]
[353310643,1739748256053,7784.8225,8.836e-05,2]
[353310644,1739748272750,594.135851,0.00011982,2]
[353310645,1739748308849,1410394.04251692,0.0001,2]
[353310647,1739748340845,1645773.61391091,0.000108,2]
[353310649,1739748381773,358.14,0.000117,2]
[353310709,1739748459300,2843.91611724,0.0001,2]
[353310710,1739748479620,570960.929741,0.0001,2]
[353310737,1739748632427,-300.0,9.999e-05,2]
[353310738,1739748632437,-145603.7981491,0.0001,2]
[353310739,1739748632446,-365.77525998,0.0001,2]
[353310740,1739748632455,-322.32,0.000117,2]
[353310741,1739748632465,-200.0,0.00012043,2]
[353310742,1739748632474,-224.73,0.0001208,2]
[353310743,1739748632483,-150.0,0.00012191,2]
[353310744,1739748632493,-1000.0,0.00012231,2]
[353310745,1739748632503,-1362.298,0.00012353,2]
[353310746,1739748632512,-500.0,0.00012354,2]
[353310747,1739748632521,-417.04,0.00012403,2]
[353310748,1739748632531,-191.46,0.00012434,2]
[353310749,1739748632540,-291.59,0.00012436,2]
[353310750,1739748632549,-569.0,0.00012469,2]
[353310751,1739748632558,-1787.0,0.00012469,2]
[353310752,1739748632567,-784.0,0.00012469,2]
[353310753,1739748632576,-908.0,0.00012469,2]
[353310754,1739748632585,-1266.0,0.00012469,2]
[353310755,1739748632594,-2957.0,0.00012469,2]
[353310756,1739748632603,-539.0,0.00012469,2]
[353310757,1739748632613,-4029.0,0.00012469,2]
[353310758,1739748632622,-150.0,0.00012469,2]
[353310759,1739748632630,-3917.0,0.00012469,2]
[353310760,1739748632640,-25592.5191966,0.000129,2]
[353310761,1739748632648,-150.17852296,0.000129,2]
[353310762,1739748632658,-166.76955616,0.000129,2]
[353310763,1739748632668,-336.84534133,0.000129,2]
[353310764,1739748632677,-500.0,0.00012999,2]
[353310765,1739748632688,-72.9187087,0.00012999,2]
[353310766,1739748632700,-427.0812913,0.00012999,2]
[353310767,1739748632710,-500.0,0.00012999,2]
[353310768,1739748632719,-500.0,0.00012999,2]
[353310769,1739748632729,-500.0,0.00012999,2]
[353310770,1739748632738,-477.72648762,0.00012999,2]
[353310771,1739748632748,-223.16,0.00012999,2]
[353310772,1739748632757,-500.0,0.00012999,2]
[353310773,1739748632767,-303.08,0.00012999,2]
[353310774,1739748632776,-500.0,0.00012999,2]
[353310775,1739748632785,-157.796924,0.00012999,2]
[353310776,1739748632794,-160.511366,0.00012999,2]
[353310777,1739748632803,-39.49281024,0.00012999,2]
[353310778,1739748632836,-460.50718976,0.00012999,2]
[353310779,1739748632845,-500.0,0.00012999,2]
[353310780,1739748632855,-775.34495067,0.00012999,2]
[353310781,1739748632867,-74.94504933,0.00012999,2]
[353310782,1739748632876,-1272.33,0.00012999,2]
[353310783,1739748632885,-500.0,0.00012999,2]
[353310784,1739748632894,-500.0,0.00012999,2]
[353310785,1739748632903,-500.0,0.00012999,2]
[353310786,1739748632912,-500.0,0.00012999,2]
[353310787,1739748632922,-500.0,0.00012999,2]
[353310788,1739748632931,-500.0,0.00012999,2]
[353310789,1739748632941,-500.0,0.00012999,2]
[353310790,1739748632950,-500.0,0.00012999,2]
[353310791,1739748632959,-500.0,0.00012999,2]
[353310792,1739748632968,-500.0,0.00012999,2]
[353310793,1739748632977,-500.0,0.00012999,2]
[353310794,1739748632986,-500.0,0.00012999,2]
[353310795,1739748632995,-500.0,0.00012999,2]
[353310796,1739748633004,-500.0,0.00012999,2]
[353310797,1739748633013,-500.0,0.00012999,2]
[353310798,1739748633023,-500.0,0.00012999,2]
[353310799,1739748633033,-500.0,0.00012999,2]
[353310800,1739748633043,-500.0,0.00012999,2]
[353310801,1739748633052,-500.0,0.00012999,2]
[353310802,1739748633062,-500.0,0.00012999,2]
[353310803,1739748633071,-500.0,0.00012999,2]
[353310804,1739748633081,-500.0,0.00012999,2]
[353310805,1739748633090,-500.0,0.00012999,2]
[353310806,1739748633099,-500.0,0.00012999,2]
[353310807,1739748633108,-448.03,0.00012999,2]
[353310808,1739748633117,-500.0,0.00012999,2]
[353310809,1739748633127,-500.0,0.00012999,2]
[353310810,1739748633136,-500.0,0.00012999,2]
[353310811,1739748633145,-500.0,0.00012999,2]
[353310812,1739748633154,-500.0,0.00012999,2]
[353310813,1739748633164,-500.0,0.00012999,2]
[353310814,1739748633173,-500.0,0.00012999,2]
[353310815,1739748633182,-500.0,0.00012999,2]
[353310816,1739748633191,-500.0,0.00012999,2]
[353310817,1739748633200,-500.0,0.00012999,2]
[353310818,1739748633209,-500.0,0.00012999,2]
[353310819,1739748633218,-500.0,0.00012999,2]
[353310820,1739748633229,-500.0,0.00012999,2]
[353310821,1739748633240,-500.0,0.00012999,2]
[353310822,1739748633250,-500.0,0.00012999,2]
[353310823,1739748633259,-500.0,0.00012999,2]
[353310824,1739748633270,-500.0,0.00012999,2]
[353310825,1739748633279,-500.0,0.00012999,2]
[353310826,1739748633288,-500.0,0.00012999,2]
[353310827,1739748633298,-500.0,0.00012999,2]
[353310828,1739748633308,-500.0,0.00012999,2]
[353310829,1739748633318,-500.0,0.00012999,2]
[353310830,1739748633517,-500.0,0.00012999,2]
[353310831,1739748633527,-500.0,0.00012999,2]
[353310832,1739748633537,-500.0,0.00012999,2]
[353310833,1739748633547,-500.0,0.00012999,2]
[353310834,1739748633556,-500.0,0.00012999,2]
[353310835,1739748633566,-500.0,0.00012999,2]
[353310836,1739748633575,-500.0,0.00012999,2]
[353310837,1739748633584,-500.0,0.00012999,2]
[353310838,1739748633593,-500.0,0.00012999,2]
[353310839,1739748633602,-500.0,0.00012999,2]
[353310840,1739748633612,-500.0,0.00012999,2]
[353310841,1739748633622,-500.0,0.00012999,2]
[353310842,1739748633632,-500.0,0.00012999,2]
[353310843,1739748633641,-500.0,0.00012999,2]
[353310844,1739748633650,-500.0,0.00012999,2]
[353310845,1739748633660,-709.74,0.00012999,2]
[353310846,1739748633669,-500.0,0.00012999,2]
[353310847,1739748633678,-30000.0,0.00013,2]
[353310848,1739748633687,-30000.0,0.00013,2]
[353310849,1739748633696,-30000.0,0.00013,2]
[353310850,1739748633705,-30000.0,0.00013,2]
[353310851,1739748633715,-30000.0,0.00013,2]
[353310852,1739748633724,-32839.63082074,0.00013,2]
[353310853,1739748633734,-115313.06780491,0.00013,2]
[353310854,1739748633750,-14546.54819957,0.00013,2]
[353310861,1739748638294,-814.86,0.00012999,2]
[353310862,1739748638304,-500.0,0.00012999,2]
[353310863,1739748638314,-500.0,0.00012999,2]
[353310864,1739748638323,-3188.10444969,0.00013,2]
[353310900,1739748640408,-151.0,0.00012469,2]
[353310901,1739748640418,-500.0,0.00012999,2]
[353310902,1739748640427,-17221.55838379,0.00013,2]
[353310903,1739748640440,-7066.68530072,0.00013,2]
[353310904,1739748640465,-410.78477552,0.00013,2]
[353310905,1739748640477,-2407.47758921,0.00013,2]
[353310906,1739748640517,-1928.5416,0.00013,2]
[353311104,1739748643394,-500.0,0.00012999,2]
[353311105,1739748643404,-2498.66361415,0.00013,2]
[353311106,1739748643444,-11552.69625578,0.00013,2]
[353311107,1739748643454,-356.2591593,0.00013002,2]
[353311108,1739748643463,-617.21283775,0.00013002,2]
[353311109,1739748643472,-863.3808683,0.00013003,2]
[353311110,1739748643482,-4641.1955176,0.00013003,2]
[353311111,1739748643491,-194.7106729,0.00013003,2]
[353311112,1739748643501,-500.0,0.00013011,2]
[353311113,1739748643511,-155.04536,0.00013012,2]
[353311114,1739748643520,-500.0,0.00013081,2]
[353311115,1739748643531,-415.67,0.00013081,2]
[353311116,1739748643540,-500.0,0.00013081,2]
[353311117,1739748643550,-500.0,0.00013081,2]
[353311118,1739748643559,-160.511366,0.00013081,2]
[353311119,1739748643569,-500.0,0.00013081,2]
[353311120,1739748643578,-1272.33,0.00013081,2]
[353311121,1739748643587,-47.48159,0.00013081,2]
[353311122,1739748643599,-452.51841,0.00013081,2]
[353311123,1739748643608,-345.67305953,0.00013081,2]
[353311124,1739748643619,-154.32694047,0.00013081,2]
[353311125,1739748643628,-233.39822373,0.00013081,2]
[353311126,1739748643640,-266.60177627,0.00013081,2]
[353311127,1739748643650,-500.0,0.00013081,2]
[353311128,1739748643660,-500.0,0.00013081,2]
[353311129,1739748643670,-500.0,0.00013081,2]
[353311130,1739748643679,-99.17335679,0.00013081,2]
[353311131,1739748643705,-240.08194703,0.00012999,2]
[353311132,1739748643714,-400.82664321,0.00013081,2]
[353311133,1739748643723,-500.0,0.00013081,2]
[353311134,1739748643732,-500.0,0.00013081,2]
[353311135,1739748643742,-327.75140999,0.00013081,2]
[353311150,1739748646400,-2026.0,0.00012469,2]
[353311151,1739748646412,-500.0,0.00012999,2]
[353311152,1739748646422,-500.0,0.00012999,2]
[353311153,1739748646432,-172.24859001,0.00013081,2]
[353311154,1739748646443,-297.91,0.00013081,2]
[353311155,1739748646453,-500.0,0.00013081,2]
[353311156,1739748646462,-500.0,0.00013081,2]
[353311157,1739748646472,-500.0,0.00013081,2]
[353311158,1739748646483,-334.04141005,0.00013081,2]
[353311159,1739748646495,-165.95858995,0.00013081,2]
[353311160,1739748646504,-500.0,0.00013081,2]
[353311161,1739748646516,-500.0,0.00013081,2]
[353311162,1739748646526,-500.0,0.00013081,2]
[353311163,1739748646535,-500.0,0.00013081,2]
[353311164,1739748646544,-500.0,0.00013081,2]
[353311165,1739748646553,-500.0,0.00013081,2]
[353311166,1739748646563,-385.843054,0.00013081,2]
[353311167,1739748646575,-114.156946,0.00013081,2]
[353311168,1739748646584,-500.0,0.00013081,2]
[353311169,1739748646593,-500.0,0.00013081,2]
[353311170,1739748646602,-500.0,0.00013081,2]
[353311171,1739748646611,-500.0,0.00013081,2]
[353311172,1739748646619,-500.0,0.00013081,2]